bitfinex/quotes_ETHUSD_20260107
["timestamp","ask_amount","ask_price","bid_price","bid_amount"]
[1767799527875,1.33764812,3154.1,3151.8,1.31679197]
[1767799528192,1.33764812,3154.1,3151.5,0.002]
[1767799528193,1.33764812,3153.9,3151.6,3.17298604]
[1767799528395,0.827,3153.8,3152.0,3.17252949]
[1767799528564,0.827,3153.7,3151.7,1.31679197]
[1767799528901,1.71435524,3154.0,3152.6,3.17197175]
[1767799529062,0.827,3154.0,3152.7,0.31719718]
[1767799529262,6.340752,3154.2,3152.7,0.31719718]
[1767799530184,6.34055098,3154.3,3152.8,1.31679197]
[1767799530682,6.34055098,3154.3,3153.0,1.31679197]
[1767799530861,3.17027549,3154.3,3153.1,0.2135792]
[1767799531070,6.33954608,3154.8,3153.1,1.53037117]
[1767799531258,9.50931912,3154.8,3153.1,1.53037117]
[1767799531464,1.33764812,3154.7,3153.1,0.2135792]
[1767799531665,1.33764812,3154.7,3152.7,5.52404606]
[1767799531882,1.33764812,3154.7,3152.7,0.31719718]
[1767799532087,1.2299185,3154.5,3152.3,3.99124853]
[1767799532285,15.84987,3154.6,3152.3,0.819]
[1767799532286,1.2299185,3154.3,3152.3,0.819]
[1767799532482,1.2299185,3154.3,3152.3,3.99128225]
[1767799532910,1.2299185,3154.3,3152.2,0.002]
[1767799533489,1.2299185,3154.1,3152.2,0.002]
[1767799533714,1.2299185,3153.9,3152.2,0.31945495]
[1767799534020,1.2299185,3153.9,3152.2,0.002]
[1767799534191,1.2299185,3153.7,3152.2,0.002]
[1767799534391,1.2299185,3153.5,3152.2,0.002]
[1767799534921,1.2299185,3153.5,3151.9,0.00064587]
[1767799535212,1.2299185,3153.5,3152.3,0.002]
[1767799535418,0.20569185,3153.4,3152.3,0.002]
[1767799536188,0.20569185,3153.4,3151.9,0.00064587]
[1767799536189,1.2299185,3153.2,3151.9,0.00064587]
[1767799536525,1.2299185,3153.0,3151.9,0.00064587]
[1767799536838,0.827,3153.0,3151.9,0.00064587]
[1767799537113,2.0569185,3153.0,3151.9,0.00064587]
[1767799537319,0.20569185,3152.9,3151.9,0.00064587]
[1767799538216,9.51535143,3152.8,3151.9,0.00064587]
[1767799539001,12.68713524,3152.8,3151.9,0.00064587]
[1767799539517,1.2299185,3152.7,3151.9,0.00064587]
[1767799540222,9.51595506,3152.6,3151.9,0.00064587]
[1767799540398,10.9077208,3152.6,3151.9,0.00064587]
[1767799540599,7.73573578,3152.6,3151.9,0.00064587]
[1767799540911,6.34397004,3152.6,3151.9,0.00064587]
[1767799541111,9.51595506,3152.6,3151.9,0.00064587]
[1767799542017,9.51595506,3152.6,3151.3,0.002]
[1767799542018,1.2299185,3152.5,3151.3,1e-08]
[1767799542392,9.51655881,3152.4,3151.3,1e-08]
[1767799542594,0.828,3152.3,3151.3,1e-08]
[1767799543097,3.17212778,3152.5,3151.3,1.21596533]
[1767799543297,6.34425556,3152.5,3151.3,1.21596533]
[1767799543817,3.17212778,3152.5,3151.3,1.21596533]
[1767799544132,0.828,3153.1,3151.3,1.21596533]
[1767799544427,6.34316522,3153.0,3151.5,1.21596532]
[1767799544723,9.51474783,3153.0,3151.7,1.21596532]
[1767799544913,6.34316522,3153.0,3151.7,1.21596532]
[1767799546421,3.17076774,3153.9,3151.9,1.21596532]
[1767799546621,9.5123343,3153.8,3151.9,1.21596532]
[1767799546921,0.828,3153.7,3151.9,1.21596532]
[1767799547124,6.3415562,3153.8,3152.2,0.25952256]
[1767799547125,3.1707781,3153.8,3152.2,0.25952256]
[1767799547328,0.828,3154.3,3152.8,1.21596532]
[1767799548010,6.34034998,3154.4,3152.8,1.21596532]
[1767799548443,6.34034998,3154.4,3153.0,1.21596532]
[1767799548641,6.34034998,3154.4,3153.2,1.21596532]
[1767799548642,3.17017499,3154.4,3153.2,1.21596532]
[1767799548847,6.34040456,3154.4,3153.2,1.21596532]
[1767799550554,6.34019709,3154.5,3153.2,1.21596532]
[1767799551216,3.17007449,3154.5,3153.3,1.21596532]
[1767799551419,3.17007449,3154.5,3153.5,1.21596532]
[1767799551616,6.34019709,3154.5,3153.5,1.21596532]
[1767799551827,3.17007449,3154.5,3153.5,1.21596532]
[1767799552017,9.50751093,3155.4,3153.5,1.21596532]
[1767799552235,6.33834062,3155.4,3153.7,1.21596532]
[1767799552552,3.16906987,3155.5,3154.1,1.21596532]
[1767799552846,6.33813974,3155.5,3154.1,1.21480019]
[1767799553560,9.50720961,3155.5,3154.1,1.21480019]
[1767799554626,3.16906987,3155.5,3154.1,1.21480019]
[1767799554851,6.3379389,3155.6,3154.2,0.43853643]
[1767799555169,12.6758778,3155.6,3154.1,1.21480019]
[1767799555411,9.50690835,3155.6,3154.1,1.21480019]
[1767799555563,0.828,3155.5,3154.2,1.21596532]
[1767799556189,1.2299185,3155.4,3153.8,0.20349653]
[1767799557073,9.50781225,3155.3,3153.8,0.20349653]
[1767799557290,10.66438533,3155.3,3153.9,0.4590287]
[1767799557491,10.66438533,3155.3,3153.8,1.41946185]
[1767799557492,6.3385415,3155.3,3153.8,1.41946185]
[1767799557697,9.50781225,3155.3,3153.8,1.41946185]
[1767799558106,13.9070015,3155.3,3153.8,1.41946185]
[1767799558462,10.73773075,3155.3,3153.8,1.21596532]
[1767799558661,0.827,3155.2,3153.8,1.21596532]
[1767799558866,6.3385415,3155.3,3153.9,1.21596532]
[1767799559097,0.827,3155.3,3154.1,1.21596532]
[1767799559469,0.827,3155.4,3154.1,1.21596532]
[1767799559768,0.001,3155.3,3154.2,0.43865424]
[1767799559978,0.001,3155.3,3154.1,1.21596532]
[1767799560392,1.2309185,3155.3,3153.8,0.002]
[1767799561064,1.2299185,3155.1,3153.8,0.002]
[1767799561267,0.827,3155.0,3153.8,0.002]
[1767799561492,3.16937119,3155.2,3153.8,1.21796532]
[1767799561705,9.50811357,3155.2,3153.8,0.002]
[1767799562006,1.22762355,3155.1,3153.8,0.002]
[1767799562994,1.22762355,3155.1,3152.3,1.2125393]
[1767799562995,1.38762355,3154.8,3152.3,1.2125393]
[1767799563196,3.341,3154.3,3152.3,1.2125393]
[1767799563417,1.22762355,3154.1,3152.2,0.002]
[1767799563693,0.827,3154.0,3152.2,1.2145393]
[1767799563940,1.22762355,3154.1,3152.4,1.2125393]
[1767799564142,0.827,3153.9,3152.4,1.2125393]
[1767799564605,0.827,3153.8,3152.4,1.2125393]
[1767799564932,0.827,3153.8,3152.2,0.002]
[1767799565136,9.51263595,3153.7,3152.2,0.31945857]
[1767799565632,3.17087865,3153.7,3152.3,1.2125393]
[1767799566035,6.3417573,3153.7,3152.3,1.2125393]
[1767799566442,10.7402595,3153.7,3152.2,0.31945857]
[1767799566608,10.7402595,3153.7,3152.2,0.002]
[1767799566799,6.3417573,3153.7,3152.2,1.2145393]
[1767799567000,3.17087865,3153.7,3152.3,1.2125393]
[1767799567236,0.827,3153.8,3152.5,1.2125393]
[1767799567795,0.827,3153.9,3152.5,1.2125393]
[1767799568000,1.96435998,3153.9,3152.6,0.43847256]
[1767799568231,1.96435998,3153.9,3152.3,3.17223848]
[1767799568597,1.13735998,3153.8,3152.2,0.002]
[1767799568815,1.13735998,3153.4,3152.2,0.002]
[1767799569028,1.13735998,3153.2,3152.2,0.002]
[1767799569216,9.51444609,3153.1,3152.2,0.002]
[1767799569631,10.65180607,3153.1,3152.2,0.002]
[1767799570449,6.34296406,3153.1,3152.2,0.002]
[1767799570650,0.827,3153.0,3152.2,0.002]
[1767799571019,3.17148203,3153.1,3152.2,0.002]
[1767799571225,0.828,3153.3,3152.2,0.002]
[1767799572553,1.13735998,3153.9,3152.2,0.002]
[1767799572759,0.828,3153.8,3152.5,0.002]
[1767799573054,0.196536,3153.7,3152.5,0.002]
[1767799573252,6.34195838,3153.6,3152.5,0.002]
[1767799573569,1.13735998,3153.4,3152.5,0.002]
[1767799575459,1.13735998,3153.2,3152.1,1e-08]
[1767799575658,1.13735998,3153.0,3151.6,0.002]
[1767799575836,1.13735998,3152.8,3151.0,0.002]
[1767799576429,1.13735998,3152.6,3151.0,0.002]
[1767799576953,1.13735998,3152.4,3151.0,0.002]
[1767799577334,10.3448607,3152.3,3151.0,0.002]
[1767799577537,1.13735998,3152.1,3151.0,0.002]
[1767799578569,0.828,3152.0,3151.0,0.002]
[1767799578769,6.3445738,3152.3,3151.0,1.18605993]
[1767799578969,3.1722869,3152.3,3151.0,1.18605993]
[1767799579197,3.17188441,3152.7,3151.0,1.18605993]
[1767799579398,9.51354093,3153.4,3151.2,1.18405993]
[1767799579602,1.06509009,3153.3,3151.4,1.18405993]
[1767799579913,9.51354093,3153.4,3151.3,0.75310499]
[1767799579914,1.13735998,3153.1,3151.3,0.75310499]
[1767799580107,1.13735998,3153.1,3151.3,1.18405993]
[1767799580784,0.828,3153.0,3151.3,1.18405993]
[1767799581094,1.96535998,3153.0,3151.3,1.18405993]
[1767799581271,3.17168321,3152.9,3151.3,1.18405993]
[1767799581472,6.34336642,3152.9,3151.4,3.17319286]
[1767799581674,1.13735998,3152.8,3151.5,0.75305125]
[1767799581869,1.13735998,3152.8,3151.0,0.002]
[1767799583506,1.13735998,3152.6,3151.0,0.002]
[1767799583805,9.51565323,3152.7,3151.0,1.18605993]
[1767799583980,0.828,3152.6,3151.0,1.18605993]
[1767799584686,6.34316522,3153.0,3151.2,1.18405993]
[1767799584875,3.17158261,3153.0,3151.2,1.18405993]
[1767799585179,3.17152822,3153.1,3151.2,1.18405993]
[1767799585390,1.13735998,3153.1,3151.3,7.53064705]
[1767799585592,1.13735998,3153.1,3151.3,8.34964705]
[1767799585823,1.13735998,3153.0,3151.8,0.002]
[1767799586022,0.001,3152.5,3151.8,0.002]
[1767799586611,1.13835998,3152.5,3151.8,0.002]
[1767799586792,0.828,3152.4,3151.8,0.002]
[1767799587688,3.17238753,3152.2,3151.8,0.002]
[1767799588211,0.001,3152.5,3151.8,0.002]
[1767799589509,3.17311359,3152.5,3151.8,0.002]
[1767799589897,0.001,3152.5,3151.8,0.002]
[1767799591703,6.33636727,3153.4,3151.8,0.002]
[1767799592038,8.30816932,3153.4,3151.8,0.002]
[1767799592328,7.16436727,3153.4,3151.8,0.002]
[1767799592491,7.16436727,3153.4,3151.9,0.01619987]
[1767799592944,6.33636727,3153.4,3151.9,0.01619987]
[1767799593121,6.33636727,3153.4,3151.8,0.002]
[1767799593122,9.50754758,3153.4,3151.8,0.002]
[1767799593522,6.33636727,3153.4,3151.8,0.002]
[1767799593723,1.21008055,3153.3,3151.9,0.63477816]
[1767799594122,6.3427629,3153.2,3151.9,3.80744694]
[1767799594318,1.21008055,3153.1,3151.9,0.63477816]
[1767799594531,1.21008055,3152.9,3151.8,0.002]
[1767799595153,0.828,3153.0,3151.8,0.002]
[1767799595754,6.3427629,3153.2,3151.8,0.03368089]
[1767799595958,2.03808055,3153.1,3151.8,0.002]
[1767799596125,9.51474783,3153.0,3151.8,0.002]
[1767799596324,6.34316522,3153.0,3151.8,0.002]
[1767799597391,3.17158261,3153.0,3151.8,0.002]
[1767799597588,0.828,3153.2,3151.8,1.21322631]
[1767799597589,3.17138145,3153.2,3151.8,1.21322631]
[1767799597879,3.17110234,3153.5,3151.8,1.21322631]
[1767799598172,9.5e-07,3152.7,3152.0,1.21122631]
[1767799598376,6.33920848,3153.5,3152.1,0.75566053]
[1767799598576,9.51031082,3153.5,3152.1,0.75566053]
[1767799598879,6.33920848,3153.5,3152.1,0.75566053]
[1767799599752,1.21008055,3153.4,3152.1,0.75566053]
[1767799600154,1.21008055,3153.2,3151.8,0.002]
[1767799600358,9.51384264,3153.3,3151.8,0.002]
[1767799600359,1.21008055,3153.0,3151.8,0.002]
[1767799600664,3.17128088,3153.3,3151.8,1.21322631]
[1767799600868,0.28668125,3154.7,3151.8,1.21322631]
[1767799600869,6.3415562,3153.8,3151.8,1.21322631]
[1767799601178,6.3415562,3153.8,3151.9,1.21122631]
[1767799601349,6.3415562,3153.8,3152.1,1.21122631]
[1767799602164,6.3415562,3153.8,3152.3,1.21122631]
[1767799602479,6.3415562,3153.8,3152.4,0.82]
[1767799603044,3.1707781,3153.8,3152.4,2.03122631]
[1767799603247,3.1707781,3153.8,3152.5,1.21122631]
[1767799603449,6.3415562,3153.8,3152.7,1.21122631]
[1767799603762,6.3415562,3153.8,3152.6,0.20312263]
[1767799604079,6.3415562,3153.8,3152.3,1.21122631]
[1767799604250,1.21008055,3153.7,3152.4,3.17218627]
[1767799604577,6.34143448,3153.9,3152.4,7.55559885]
[1767799604764,6.34143448,3153.9,3152.5,1.21122631]
[1767799605172,1.21008055,3153.7,3152.1,1.21122631]
[1767799605351,1.21008055,3153.5,3152.3,3.17218651]
[1767799606260,0.828,3153.7,3151.8,0.002]
[1767799606261,1.21008055,3153.3,3151.8,0.002]
[1767799606865,1.21008055,3153.1,3151.8,0.002]
[1767799608162,3.17158261,3153.0,3151.8,0.002]
[1767799608484,3.17158261,3153.0,3151.8,3.17479015]
[1767799608664,3.17158261,3153.0,3151.9,0.39937902]
[1767799609755,6.34316522,3153.0,3151.9,0.39937902]
[1767799610084,6.34316522,3153.0,3151.5,0.002]
[1767799610085,1.21008055,3152.9,3151.5,0.002]
[1767799610389,1.21008055,3152.4,3151.5,0.002]
[1767799610568,2.03808055,3152.3,3151.5,0.002]
[1767799611158,1.21008055,3152.2,3151.5,0.002]
[1767799611358,0.828,3152.3,3151.5,0.002]
[1767799611958,2.03808055,3152.3,3151.5,0.002]
[1767799612278,6.34497636,3152.1,3151.5,0.002]
[1767799612485,9.51746454,3152.1,3151.5,0.002]
[1767799612865,9.51746454,3152.1,3150.6,0.002]
[1767799612866,1.21008055,3152.0,3150.6,0.002]
[1767799613465,2.03808055,3151.9,3150.6,0.002]
[1767799614466,10.728451,3151.8,3150.6,0.002]
[1767799614671,1.1556451,3151.7,3150.6,0.002]
[1767799615594,3.17279015,3151.8,3150.6,0.002]
[1767799615778,3.17279015,3151.8,3150.8,1.21122631]
[1767799616291,6.3455803,3151.8,3150.8,1.21122631]
[1767799616499,6.34517766,3152.0,3150.8,1.21122631]
[1767799616695,3.17258883,3152.0,3150.8,1.21122631]
[1767799616996,3.16159928,3152.0,3151.0,1.21322631]
[1767799617192,6.32619571,3152.0,3151.0,1.21322631]
[1767799617394,6.31720426,3152.0,3151.0,1.21322631]
[1767799617593,6.30921186,3152.0,3151.0,1.21322631]
[1767799617799,6.34417128,3152.5,3151.0,1.21322631]
[1767799618095,0.828,3153.0,3151.0,1.21322631]
[1767799618393,6.34336642,3152.9,3151.1,6.34698994]
[1767799618569,6.34336642,3152.9,3151.3,1.21122631]
[1767799618896,3.17168321,3152.9,3151.3,1.21122631]
[1767799619678,9.51504963,3152.9,3151.3,1.21122631]
[1767799619871,6.34336642,3152.9,3151.3,1.21122631]
[1767799620489,6.34296406,3153.1,3151.5,1.21122631]
[1767799620698,9.51263595,3153.7,3151.7,1.11959905]
[1767799620994,1.14192935,3153.5,3151.7,1.93959905]
[1767799621198,1.14192935,3153.5,3151.7,0.82]
[1767799621397,1.14192935,3153.3,3151.4,3.17319286]
[1767799621585,1.14192935,3153.3,3151.3,3.99328839]
[1767799621895,1.14192935,3153.3,3151.0,1.12159905]
[1767799621896,1.09789183,3152.5,3151.0,0.002]
[1767799622102,1.09789183,3152.3,3151.0,0.002]
[1767799622465,10.61535637,3152.1,3151.0,0.002]
[1767799622665,1.09789183,3152.0,3151.0,0.002]
[1767799622866,7.17297636,3152.1,3151.0,0.002]
[1767799623092,11.44335637,3152.1,3151.0,0.002]
[1767799623398,8.27086819,3152.1,3151.0,0.002]
[1767799624198,1.09789183,3152.0,3151.0,0.002]
[1767799624375,1.09789183,3151.8,3151.0,0.00082104]
[1767799624574,9.51867246,3151.7,3151.0,0.00082104]
[1767799624772,10.61656429,3151.7,3151.0,0.00082104]
[1767799625375,1.09789183,3151.5,3150.6,0.002]
[1767799625696,1.29048101,3151.4,3150.6,1e-08]
[1767799626870,6.34658712,3151.3,3150.6,1e-08]
[1767799627287,3.17329356,3151.3,3150.6,1.06081533]
[1767799627684,3.17329356,3151.3,3150.6,1e-08]
[1767799627878,3.17311362,3151.5,3150.6,1e-08]
[1767799628104,6.34622724,3151.5,3150.6,0.3179144]
[1767799628280,1.92589183,3152.1,3150.6,0.3179144]
[1767799628281,3.17258883,3152.0,3150.6,1e-08]
[1767799628480,6.34517766,3152.0,3150.6,1e-08]
[1767799630774,1.09789183,3151.9,3150.6,1e-08]
[1767799631385,9.51776649,3152.0,3150.6,1e-08]
[1767799631700,7.44306949,3152.0,3150.6,1e-08]
[1767799632003,6.34517766,3152.0,3150.7,0.82]
[1767799632198,6.34517766,3152.0,3150.8,0.50547937]
[1767799632397,6.34517766,3152.0,3150.7,0.82]
[1767799632705,6.34517766,3152.0,3150.7,1.88081532]
[1767799632922,6.34448272,3152.4,3150.9,1.06081532]
[1767799633107,3.17224136,3152.4,3150.9,1.06081532]
[1767799633410,1.09889183,3152.6,3150.8,6.34759426]
[1767799633411,0.001,3152.6,3151.1,1.06081532]
[1767799633575,3.17299174,3152.6,3151.1,1.06081532]
[1767799633780,0.001,3152.6,3151.2,1.88081532]
[1767799633980,0.001,3152.6,3151.3,1.06081532]
[1767799634204,9.5e-07,3151.7,3151.4,0.18808153]
[1767799634407,6.34196596,3153.1,3151.4,0.18808153]
[1767799634706,1.09789183,3153.0,3151.5,0.82]
[1767799634879,3.17132908,3153.3,3151.6,6.34598298]
[1767799635085,6.34236062,3153.4,3151.7,1.06081532]
[1767799635292,6.34236062,3153.4,3151.9,1.06081532]
[1767799635489,9.51354093,3153.4,3152.0,1.06081532]
[1767799635694,6.34236062,3153.4,3152.0,1.06081532]
[1767799636408,9.51354093,3153.4,3152.0,1.06081532]
[1767799636801,3.17118031,3153.4,3151.9,0.82]
[1767799637006,3.17118031,3153.4,3152.0,0.47334627]
[1767799637592,1.09789183,3153.4,3151.7,3.17286552]
[1767799637891,1.09789183,3153.4,3151.8,0.82]
[1767799638304,1.09789183,3153.4,3151.7,3.17286552]
[1767799638482,1.09789183,3153.4,3151.9,0.82]
[1767799638884,9.51384264,3153.3,3151.9,0.82]
[1767799639216,9.51384264,3153.3,3152.0,0.39926949]
[1767799639399,9.51384264,3153.3,3151.9,0.82]
[1767799640411,9.51384264,3153.3,3151.9,3.99268313]
[1767799640618,9.51384264,3153.3,3151.9,0.82]
[1767799641216,9.51384264,3153.3,3151.6,4.23378068]
[1767799641217,1.09789183,3153.2,3151.6,1.06081532]
[1767799641414,1.06117345,3153.1,3151.7,0.82]
[1767799641784,1.09789183,3153.0,3151.4,0.18808153]
[1767799641989,1.09789183,3152.9,3151.4,0.82]
[1767799642519,1.09789183,3152.9,3150.8,3.17376829]
[1767799642687,1.09789183,3152.9,3150.9,3.9936363]
[1767799643091,1.09789183,3152.7,3151.0,3.1735599]
[1767799643507,1.09789183,3152.7,3151.0,1.06081532]
[1767799643697,1.37850271,3152.6,3151.1,0.82]
[1767799643898,1.37850271,3152.6,3151.1,1.88081532]
[1767799644114,1.37850271,3152.6,3151.2,1.06081532]
[1767799645219,3.17168321,3152.9,3151.3,1.06081532]
[1767799645803,3.16568891,3152.9,3151.7,1.06081532]
[1767799646006,6.32838067,3152.9,3151.8,0.82]
[1767799646207,6.32038827,3152.9,3151.8,0.82]
[1767799646396,6.27643007,3152.9,3151.8,0.82]
[1767799646596,6.27643007,3152.9,3151.9,0.18808153]
[1767799647238,6.34256176,3153.3,3152.0,1.07943579]
[1767799647532,1.09789183,3152.9,3151.9,0.18808153]
[1767799647734,1.09789183,3152.9,3151.6,0.002]
[1767799647952,1.09789183,3152.8,3151.3,0.002]
[1767799648438,1.09789183,3152.5,3151.3,0.002]
[1767799649292,3.17218627,3152.4,3151.3,0.002]
[1767799649495,6.34437254,3152.4,3151.3,0.3195495]
[1767799649695,1.09789183,3152.3,3151.3,0.822]
[1767799649895,1.09789183,3152.3,3151.3,0.002]
[1767799650127,6.34437254,3152.4,3151.3,0.002]
[1767799650329,3.17218627,3152.4,3151.3,0.002]
[1767799650631,6.34437254,3152.4,3151.3,0.002]
[1767799650828,3.17218627,3152.4,3151.3,0.002]
[1767799651127,6.34437254,3152.4,3151.3,0.002]
[1767799651328,1.09789183,3152.6,3151.3,0.002]
[1767799651630,9.51571295,3152.7,3151.3,1.06281532]
[1767799652431,10.59214968,3152.7,3151.3,0.002]
[1767799653215,4.41743673,3152.6,3151.3,0.002]
[1767799653434,1.07643673,3152.5,3151.3,0.002]
[1767799655245,3.341,3152.9,3151.3,0.002]
[1767799655246,0.828,3152.8,3151.4,3.17319286]
[1767799655548,0.828,3152.8,3151.5,0.42859805]
[1767799655712,1.07643673,3152.7,3151.5,0.42859805]
[1767799655909,1.07643673,3152.6,3151.3,0.002]
[1767799657242,1.07643673,3152.1,3150.6,1e-08]
[1767799657472,1.07643673,3151.9,3150.6,1e-08]
[1767799658265,9.51716259,3152.2,3150.6,1.11078761]
[1767799658555,1.90443673,3152.0,3151.6,0.002]
[1767799658757,1.90443673,3152.0,3151.3,0.002]
[1767799658758,0.828,3152.0,3151.3,0.002]
[1767799658920,0.828,3152.0,3150.6,1.11078761]
[1767799659373,3.17238753,3152.2,3150.7,1.1107876]
[1767799659526,5.07682426,3152.2,3150.7,1.1107876]
[1767799659850,5.07682426,3152.2,3150.8,0.4284716]
[1767799661846,1.07643673,3152.1,3150.8,0.4284716]
[1767799662248,1.07643673,3152.1,3150.8,3.60225237]
[1767799662426,1.07643673,3152.1,3150.8,0.4284716]
[1767799663123,6.34477506,3152.2,3150.8,4.7129571]
[1767799663452,6.34477506,3152.2,3151.0,1.1107876]
[1767799664151,6.3445738,3152.3,3151.0,1.1107876]
[1767799664347,9.5168607,3152.3,3151.0,1.1107876]
[1767799664551,9.5168607,3152.3,3150.9,0.78868282]
[1767799664552,1.07643673,3152.2,3150.9,0.78868282]
[1767799664755,1.07643673,3152.0,3150.6,1e-08]
[1767799664925,1.07643673,3151.8,3150.6,1e-08]
[1767799666245,6.34578164,3151.7,3150.6,1e-08]
[1767799666441,9.51867246,3151.7,3150.6,1e-08]
[1767799666646,1.07643673,3151.6,3150.6,1e-08]
[1767799666828,6.34578164,3151.7,3150.6,1e-08]
[1767799667030,6.34578164,3151.7,3150.6,0.31791931]
[1767799667632,6.34578164,3151.7,3150.6,1.11078761]
[1767799668034,9.51867246,3151.7,3150.6,1.11078761]
[1767799668448,9.51806844,3151.9,3150.6,1.11078761]
[1767799668836,9.51806844,3151.9,3150.6,1e-08]
[1767799668837,1.07643673,3151.8,3150.6,1e-08]
[1767799669248,7.17337896,3151.9,3150.6,4.28477507]
[1767799669450,7.17337896,3151.9,3150.7,0.42897751]
[1767799669646,6.34537896,3151.9,3150.7,1.53976511]
[1767799670537,6.34497636,3152.1,3150.8,3.17379713]
[1767799671442,6.34497636,3152.1,3151.0,1.1107876]
[1767799671645,6.34497636,3152.1,3151.1,0.19307876]
[1767799672454,1.07643673,3152.0,3151.1,0.19307876]
[1767799672675,6.34537896,3151.9,3150.9,0.002]
[1767799672863,3.17268948,3151.9,3150.9,0.002]
[1767799673454,3.17248818,3152.1,3150.9,1.1127876]
[1767799673649,3.17248818,3152.1,3150.9,1.9327876]
[1767799673855,0.001,3152.3,3151.1,1.1107876]
[1767799673856,3.17331123,3152.3,3151.1,1.1107876]
[1767799674041,0.001,3152.3,3151.1,1.1107876]
[1767799674357,6.33756746,3153.3,3151.8,1.1107876]
[1767799674651,1.07643673,3153.5,3152.1,3.17248818]
[1767799674851,1.07643673,3153.5,3152.1,1.1107876]
[1767799675039,2.135344,3153.5,3152.2,0.42833346]
[1767799675440,2.135344,3153.5,3152.2,1.53912106]
[1767799675641,6.3417573,3153.7,3152.3,1.1107876]
[1767799675844,9.51263595,3153.7,3152.3,1.1107876]
[1767799676377,3.17087865,3153.7,3152.3,1.1107876]
[1767799676664,3.17057704,3154.0,3152.4,6.34437254]
[1767799676866,3.17057704,3154.0,3152.6,1.1107876]
[1767799677365,6.4,3156.2,3152.5,1.56551601]
[1767799677366,1.07643673,3154.9,3152.9,0.25952256]
[1767799677532,1.07643673,3154.9,3153.2,1.1107876]
[1767799677737,1.07643673,3154.9,3153.3,0.82]
[1767799678089,1.07643673,3154.9,3153.3,1.9307876]
[1767799678277,0.74155809,3154.8,3153.4,0.19307876]
[1767799678767,6.33974704,3154.7,3153.5,0.82]
[1767799679381,3.16987352,3154.7,3153.5,0.82]
[1767799679780,1.07643673,3155.2,3153.6,1.1107876]
[1767799679981,7.41526692,3155.2,3153.6,1.1107876]
[1767799680178,0.001,3155.3,3153.7,1.30386636]
[1767799680377,9.5e-07,3155.3,3153.7,0.19307876]
[1767799680590,7.35369748,3156.1,3154.3,1.1107876]
[1767799680790,1.01676266,3155.9,3153.9,3.17065837]
[1767799681097,1.01676266,3155.9,3154.0,0.82]
[1767799681315,1.01676266,3155.7,3153.4,1.24256881]
[1767799681593,1.01676266,3155.6,3153.5,0.82]
[1767799681797,0.99447067,3155.4,3153.5,0.82]
[1767799681979,0.99447067,3155.4,3153.4,0.19307876]
[1767799682156,0.99447067,3155.4,3153.5,0.82]
[1767799682362,0.99447067,3155.4,3153.4,3.99110518]
[1767799682690,0.99447067,3155.4,3153.0,3.17158252]
[1767799682854,0.99447067,3155.2,3153.5,0.9884833]
[1767799683164,3.16906987,3155.5,3153.5,0.9884833]
[1767799683364,6.33813974,3155.5,3153.9,0.9884833]
[1767799683588,6.33813974,3155.5,3154.1,0.9884833]
[1767799683891,6.33813974,3155.5,3154.2,0.82]
[1767799683892,9.5e-07,3154.4,3154.2,0.82]
[1767799684060,6.33514354,3155.5,3154.2,0.82]
[1767799684260,9.50421341,3155.5,3154.1,0.9884833]
[1767799684455,9.50421341,3155.5,3153.6,1.44931921]
[1767799684456,0.99447067,3155.3,3154.0,0.82]
[1767799684662,0.99447067,3155.3,3153.8,0.82]
[1767799684886,7.33321305,3155.2,3153.8,0.82]
[1767799685288,6.33874238,3155.2,3153.8,4.97923589]
[1767799685487,0.63387424,3155.1,3153.9,0.49792359]
[1767799685997,0.63387424,3155.1,3153.9,1.48640689]
[1767799686404,0.63387424,3155.1,3153.5,3.17106762]
[1767799686405,0.99447067,3155.0,3153.5,3.17106762]
[1767799686573,0.99447067,3155.0,3153.9,0.82]
[1767799686984,7.33381581,3154.9,3153.7,0.82]
[1767799687302,7.33381581,3154.9,3152.6,1.1484833]
[1767799687303,0.99447067,3154.8,3152.6,1.1484833]
[1767799687463,0.99447067,3154.6,3152.8,0.9884833]
[1767799687665,0.99447067,3154.6,3152.9,3.1716045]
[1767799687866,0.99447067,3154.6,3153.0,0.82]
[1767799688101,0.99447067,3154.6,3153.1,3.1714489]
[1767799688381,0.20448195,3154.5,3153.2,0.31714489]
[1767799688593,1.19895262,3154.5,3153.2,0.31714489]
[1767799688783,1.19895262,3154.5,3153.0,0.82]
[1767799689098,6.34034998,3154.4,3153.1,3.17148203]
[1767799689468,3.17017499,3154.4,3153.1,3.17148203]
[1767799689662,3.16977304,3154.8,3153.2,0.9884833]
[1767799689864,0.99447067,3154.7,3153.3,1.55314474]
[1767799690068,0.99447067,3154.7,3153.3,0.7316383]
[1767799690286,0.99447067,3154.7,3153.4,0.82]
[1767799690666,0.99447067,3154.7,3153.3,0.7316383]
[1767799690879,0.99447067,3154.4,3152.6,3.17194315]
[1767799691083,0.99447067,3154.4,3152.7,1.00939993]
[1767799691310,6.34014898,3154.5,3152.8,0.9884833]
[1767799691806,7.33461965,3154.5,3152.8,0.9884833]
[1767799692106,6.34014898,3154.5,3153.0,0.9884833]
[1767799692309,6.34014898,3154.5,3153.1,0.18084833]
[1767799692506,0.99447067,3154.4,3153.1,0.18084833]
[1767799692799,0.99447067,3154.4,3152.8,0.82]
[1767799692988,0.99447067,3154.2,3152.8,0.82]
[1767799693398,0.99447067,3154.1,3151.8,0.9884833]
[1767799693576,0.99447067,3154.1,3152.0,0.9884833]
[1767799693776,0.828,3154.2,3152.0,0.9884833]
[1767799693777,0.99447067,3153.9,3152.1,0.19684833]
[1767799693978,0.99447067,3153.9,3152.2,0.82]
[1767799694301,0.99447067,3153.9,3152.1,0.19684833]
[1767799694513,0.99447067,3153.9,3152.2,0.82]
[1767799695100,0.99447067,3153.7,3152.2,0.82]
[1767799695277,0.99447067,3153.6,3152.1,0.82]
[1767799695677,0.99447067,3153.6,3152.5,0.002]
[1767799695877,6.3415562,3153.8,3152.5,0.002]
[1767799696371,9.5123343,3153.8,3152.5,0.002]
[1767799696709,6.3415562,3153.8,3152.5,0.002]
[1767799696889,3.1707781,3153.8,3152.5,0.9904833]
[1767799697094,6.34115408,3154.0,3152.6,4.16046832]
[1767799697403,6.34115408,3154.0,3152.7,0.82]
[1767799697590,3.17057704,3154.0,3152.7,1.8084833]
[1767799697788,6.34115408,3154.0,3152.8,0.81524533]
[1767799698696,3.170376,3154.2,3152.8,0.81524533]
[1767799699003,0.99447067,3154.6,3152.8,3.98696539]